fUST/lending_fUST_20240830
["ID","MTS","AMOUNT","RATE_DAILY","PERIOD"]
[336683673,1725013847754,-253.61822803,0.00038356,120]
[336683674,1725013847763,-151.0,0.00038356,7]
[336683675,1725013847773,-151.0,0.00038356,7]
[336683676,1725013847782,-500.0,0.00038356,120]
[336683677,1725013847791,-500.0,0.00038356,120]
[336683678,1725013847800,-151.0,0.00038356,7]
[336683679,1725013847810,-151.0,0.00038356,7]
[336683680,1725013847819,-1272.260702,0.00038356,7]
[336683681,1725013847828,-1272.260702,0.00038356,7]
[336683682,1725013847838,-515.49504094,0.00038356,120]
[336683683,1725013847847,-504.32254814,0.00038356,120]
[336683684,1725013847857,-1272.260702,0.00038356,7]
[336683685,1725013847867,-1272.260702,0.00038356,7]
[336683686,1725013847878,-500.0,0.00038356,120]
[336683687,1725013847887,-10000.0,0.00038356,7]
[336683688,1725013847896,-500.0,0.00038356,120]
[336683689,1725013847905,-10000.0,0.00038356,7]
[336683690,1725013847915,-10000.0,0.00038356,7]
[336683691,1725013847924,-10000.0,0.00038356,7]
[336683692,1725013847934,-500.0,0.00038356,120]
[336683693,1725013847944,-502.08794753,0.00038356,120]
[336683694,1725013847954,-500.0,0.00038356,120]
[336683695,1725013847963,-500.0,0.00038356,120]
[336683696,1725013847972,-500.0,0.00038356,120]
[336683697,1725013847981,-10000.0,0.00038356,7]
[336683698,1725013847990,-500.0,0.00038356,120]
[336683699,1725013847999,-10000.0,0.00038356,7]
[336683700,1725013848008,-3061.178542,0.00038356,7]
[336683701,1725013848017,-500.0,0.00038356,120]
[336683702,1725013848027,-502.21806585,0.00038356,120]
[336683703,1725013848037,-500.0,0.00038356,120]
[336683704,1725013848046,-500.0,0.00038356,120]
[336683705,1725013848056,-500.0,0.00038356,120]
[336683706,1725013848065,-3061.178542,0.00038356,7]
[336683707,1725013848074,-548.886096,0.00038356,7]
[336683708,1725013848083,-548.886096,0.00038356,7]
[336683709,1725013848092,-500.0,0.00038356,120]
[336683710,1725013848102,-3061.178542,0.00038356,7]
[336683711,1725013848111,-4000.0,0.00038356,60]
[336683712,1725013848120,-500.0,0.00038356,120]
[336683713,1725013848130,-4000.0,0.00038356,60]
[336683714,1725013848140,-500.0,0.00038356,120]
[336683715,1725013848149,-4000.0,0.00038356,60]
[336683716,1725013848158,-4000.0,0.00038356,60]
[336683717,1725013848168,-4000.0,0.00038356,60]
[336683718,1725013848177,-4000.0,0.00038356,60]
[336683719,1725013848187,-200.636041,0.00038356,60]
[336683720,1725013848197,-548.886096,0.00038356,7]
[336683721,1725013848207,-500.0,0.00038356,120]
[336683722,1725013848216,-548.886096,0.00038356,7]
[336683723,1725013848225,-296.29036417,0.00038356,120]
[336683724,1725013848236,-500.0,0.00038356,120]
[336683725,1725013848245,-500.0,0.00038356,120]
[336683726,1725013848255,-500.0,0.00038356,120]
[336683727,1725013848265,-500.0,0.00038356,120]
[336683728,1725013848275,-502.97523156,0.00038356,120]
[336683729,1725013848285,-500.0,0.00038356,120]
[336683730,1725013848294,-500.0,0.00038356,120]
[336683731,1725013848304,-500.0,0.00038356,120]
[336683732,1725013848313,-500.0,0.00038356,7]
[336683733,1725013848323,-500.0,0.00038356,120]
[336683734,1725013848332,-500.0,0.00038356,120]
[336683735,1725013848342,-996.934131,0.00038356,7]
[336683736,1725013848352,-996.934131,0.00038356,7]
[336683737,1725013848362,-500.0,0.00038356,120]
[336683738,1725013848371,-500.0,0.00038356,120]
[336683739,1725013848381,-500.0,0.00038356,120]
[336683740,1725013848392,-500.0,0.00038356,30]
[336683741,1725013848401,-996.934131,0.00038356,7]
[336683742,1725013848410,-996.934131,0.00038356,7]
[336683743,1725013848419,-500.56816843,0.00038356,120]
[336683744,1725013848429,-500.0,0.00038356,120]
[336683745,1725013848440,-500.0,0.00038356,120]
[336683746,1725013848450,-682.91,0.00038356,120]
[336683747,1725013848462,-500.0,0.00038356,120]
[336683748,1725013848472,-3902.900252,0.00038356,7]
[336683749,1725013848481,-3902.900252,0.00038356,7]
[336683750,1725013848491,-500.0,0.00038356,120]
[336683751,1725013848500,-500.0,0.00038356,120]
[336683752,1725013848510,-500.0,0.00038356,120]
[336683753,1725013848520,-3902.900252,0.00038356,7]
[336683754,1725013848530,-3902.900252,0.00038356,7]
[336683755,1725013848540,-500.0,0.00038356,120]
[336683756,1725013848550,-500.0,0.00038356,120]
[336683757,1725013848559,-500.0,0.00038356,120]
[336683758,1725013848568,-500.0,0.00038356,120]
[336683759,1725013848578,-500.0,0.00038356,120]
[336683760,1725013848587,-500.0,0.00038356,120]
[336683761,1725013848597,-500.0,0.00038356,120]
[336683762,1725013848607,-500.0,0.00038356,120]
[336683763,1725013848617,-500.0,0.00038356,120]
[336683764,1725013848626,-502.08472531,0.00038356,120]
[336683765,1725013848636,-500.0,0.00038356,120]
[336683766,1725013848647,-500.0,0.00038356,120]
[336683767,1725013848656,-500.0,0.00038356,120]
[336683768,1725013848665,-500.0,0.00038356,120]
[336683769,1725013848675,-500.0,0.00038356,120]
[336683770,1725013848684,-4072.908335,0.00038356,7]
[336683771,1725013848694,-500.0,0.00038356,120]
[336683772,1725013848704,-4072.908335,0.00038356,7]
[336683773,1725013848713,-500.0,0.00038356,120]
[336683774,1725013848723,-921.82,0.00038356,21]
[336683775,1725013848734,-500.0,0.00038356,120]
[336683776,1725013848743,-500.0,0.00038356,120]
[336683777,1725013848753,-503.86560148,0.00038356,120]
[336683778,1725013848763,-4072.908335,0.00038356,7]
[336683779,1725013848773,-500.0,0.00038356,120]
[336683780,1725013848783,-4072.908335,0.00038356,7]
[336683781,1725013848792,-500.0,0.00038356,120]
[336683782,1725013848802,-250.382751,0.00038356,7]
[336683783,1725013848811,-250.382751,0.00038356,7]
[336683784,1725013848821,-500.0,0.00038356,120]
[336683785,1725013848831,-502.13047584,0.00038356,120]
[336683786,1725013848841,-500.0,0.00038356,120]
[336683787,1725013848850,-206.737216,0.00038356,7]
[336683788,1725013848860,-206.737216,0.00038356,7]
[336683789,1725013848873,-1386.93,0.00038356,120]
[336683790,1725013848883,-500.0,0.00038356,120]
[336683791,1725013848892,-500.0,0.00038356,120]
[336683792,1725013848901,-500.0,0.00038356,120]
[336683793,1725013848914,-502.02519842,0.00038356,120]
[336683794,1725013848924,-151.0,0.00038356,7]
[336683795,1725013848933,-5433.920679,0.00038356,7]
[336683796,1725013848942,-206.737216,0.00038356,7]
[336683797,1725013848953,-151.0,0.00038356,7]
[336683798,1725013848963,-5433.920679,0.00038356,7]
[336683799,1725013848973,-250.382751,0.00038356,7]
[336683800,1725013848983,-206.737216,0.00038356,7]
[336683801,1725013848992,-250.382751,0.00038356,7]
[336683802,1725013849002,-503.96606893,0.00038356,120]
[336683803,1725013849012,-500.0,0.00038356,120]
[336683804,1725013849022,-500.0,0.00038356,120]
[336683805,1725013849030,-500.0,0.00038356,120]
[336683806,1725013849041,-151.0,0.00038356,7]
[336683807,1725013849050,-151.0,0.00038356,7]
[336683808,1725013849060,-5433.920679,0.00038356,7]
[336683809,1725013849069,-5433.920679,0.00038356,7]
[336683810,1725013849079,-500.0,0.00038356,120]
[336683811,1725013849088,-500.0,0.00038356,120]
[336683812,1725013849098,-500.0,0.00038356,120]
[336683813,1725013849108,-503.37847548,0.00038356,120]
[336683814,1725013849117,-500.0,0.00038356,120]
[336683815,1725013849127,-151.0,0.00038356,7]
[336683816,1725013849136,-500.0,0.00038356,120]
[336683817,1725013849146,-500.0,0.00038356,120]
[336683818,1725013849155,-812.44,0.00038356,120]
[336683819,1725013849165,-500.0,0.00038356,120]
[336683820,1725013849175,-155.32711,0.00038356,7]
[336683821,1725013849185,-500.0,0.00038356,120]
[336683822,1725013849194,-500.0,0.00038356,120]
[336683823,1725013849204,-500.0,0.00038356,120]
[336683824,1725013849213,-500.0,0.00038356,120]
[336683825,1725013849223,-500.0,0.00038356,120]
[336683826,1725013849232,-503.02572991,0.00038356,120]
[336683827,1725013849241,-500.0,0.00038356,120]
[336683828,1725013849251,-501.92519864,0.00038356,120]
[336683829,1725013849262,-500.0,0.00038356,120]
[336683830,1725013849271,-3334.980122,0.00038356,7]
[336683831,1725013849281,-3334.980122,0.00038356,7]
[336683832,1725013849290,-1253.09,0.00038356,120]
[336683833,1725013849311,-500.0,0.00038356,120]
[336683834,1725013849320,-500.0,0.00038356,120]
[336683835,1725013849420,-500.0,0.00038356,120]
[336683836,1725013849430,-500.0,0.00038356,60]
[336683837,1725013849440,-3157.03340056,0.00038356,7]
[336683845,1725013944555,2489.571499,0.000201,8]
[336683846,1725013982085,1000.0,0.00021,8]
[336683847,1725014026761,169.0985,0.0001863,2]
[336683851,1725014179381,6348.01634157,0.0001,2]
[336683854,1725014304386,164.325926,0.00014247,2]
[336683860,1725014572982,169.0985,0.0001863,2]
[336683882,1725015025202,164.325926,0.00014247,2]
[336683885,1725015032242,-760.904,0.00021499,2]
[336683886,1725015032252,-310.746,0.000215,10]
[336683887,1725015032265,-1689.25399975,0.000215,10]
[336683888,1725015032274,-2000.0,0.000225,12]
[336683889,1725015032283,-150.0,0.00023798,2]
[336683890,1725015032292,-192.943769,0.00023798,2]
[336683891,1725015032303,-124.68265665,0.00023832,2]
[336683927,1725015038415,-1142.65767135,0.00023832,2]
[336683928,1725015038426,-385.742651,0.00023942,2]
[336683929,1725015038436,-3000.0,0.00024064,2]
[336683930,1725015038446,-697.2,0.00025378,3]
[336683931,1725015038455,-300.0,0.00025986,2]
[336683932,1725015038464,-257.0,0.00025986,2]
[336683933,1725015038474,-465.00002014,0.00025987,2]
[336683934,1725015038488,-953.05569658,0.000262,2]
[336683935,1725015038497,-30133.1611852,0.00026291,2]
[336683936,1725015038507,-190.11875376,0.000263,2]
[336683937,1725015038516,-200.12500399,0.000263,2]
[336683938,1725015038525,-169.50740567,0.000263,2]
[336683939,1725015038535,-251.0,0.0002641,2]
[336683940,1725015038545,-158.699915,0.00026537,2]
[336683941,1725015038554,-158.699915,0.00026623,2]
[336683942,1725015038563,-158.699915,0.0002671,2]
[336683943,1725015038572,-158.699915,0.00026796,2]
[336683944,1725015038582,-697.2,0.00026807,4]
[336683945,1725015038592,-158.699915,0.00026883,2]
[336683946,1725015038601,-158.699915,0.00026969,2]
[336683947,1725015038612,-158.699915,0.00027055,2]
[336683948,1725015038622,-158.699915,0.00027142,2]
[336683949,1725015038631,-158.699915,0.00027228,2]
[336683950,1725015038641,-158.699915,0.00027315,2]
[336683951,1725015038652,-158.699915,0.00027401,2]
[336683952,1725015038662,-158.699915,0.00027488,2]
[336683953,1725015038671,-158.699915,0.00027574,2]
[336683954,1725015038681,-158.699915,0.00027661,2]
[336683955,1725015038690,-158.699915,0.00027747,2]
[336683956,1725015038700,-158.699915,0.00027833,2]
[336683957,1725015038709,-158.699915,0.0002792,2]
[336683958,1725015038720,-500.0,0.00028091,2]
[336683959,1725015038730,-697.2,0.00028236,5]
[336683960,1725015038747,-500.0,0.00028374,2]
[336683961,1725015038758,-420.0,0.00028585,2]
[336683962,1725015038768,-700.0,0.00028937,2]
[336683963,1725015038778,-164.325926,0.00029589,2]
[336683964,1725015038789,-392.6370996,0.00029653,2]
[336683965,1725015038799,-697.2,0.00029665,6]
[336683966,1725015038944,-193.726945,0.00029753,2]
[336683967,1725015038958,-207.50802153,0.00030231,11]
[336683968,1725015038967,-500.0,0.00030501,7]
[336683969,1725015038977,-500.0,0.00030758,7]
[336683970,1725015038990,-697.2,0.00031094,7]
[336683971,1725015038999,-287.0,0.00031443,2]
[336683972,1725015039009,-150.0,0.00031964,14]
[336683973,1725015039020,-150.0,0.00031964,14]
[336683974,1725015039029,-200.0,0.00031964,14]
[336683975,1725015039038,-500.0,0.00031995,7]
[336683976,1725015039048,-500.0,0.00032305,7]
[336683977,1725015039057,-697.2,0.00032523,15]
[336683978,1725015039067,-500.0,0.00033608,7]
[336683979,1725015039076,-600.0,0.00033835,22]
[336683980,1725015039086,-392.63709959,0.0003387,2]
[336683981,1725015039096,-697.2,0.00033952,15]
[336683982,1725015039105,-500.0,0.00034365,7]
[336683983,1725015039115,-500.0,0.00034991,7]
[336683984,1725015039126,-500.0,0.00034991,7]
[336683985,1725015039136,-500.0,0.00034991,7]
[336683986,1725015039145,-500.0,0.00034991,7]
[336683987,1725015039155,-500.0,0.00034991,7]
[336683988,1725015039164,-500.0,0.00034991,7]
[336683989,1725015039173,-155.53388557,0.00034991,7]
[336683990,1725015039183,-618.32532387,0.00034991,7]
[336683991,1725015039192,-500.0,0.00034991,7]
[336683992,1725015039202,-500.0,0.00034991,7]
[336683993,1725015039212,-500.0,0.00034991,7]
[336683994,1725015039225,-500.0,0.00034991,7]
[336683995,1725015039244,-326.47675033,0.00034991,7]
[336683996,1725015039253,-500.0,0.00034991,7]
[336683997,1725015039263,-500.0,0.00034991,7]
[336683998,1725015039273,-500.0,0.00034991,7]
[336683999,1725015039282,-250.0,0.00034991,7]
[336684000,1725015039292,-414.65361467,0.00034991,7]
[336684001,1725015039302,-697.2,0.00035381,15]
[336684002,1725015039313,-500.0,0.00035507,7]
[336684003,1725015039322,-163.107128,0.00035616,120]
[336684004,1725015039333,-385.742651,0.00035913,2]
[336684005,1725015039343,-600.0,0.00036183,34]
[336684006,1725015039355,-600.0,0.00036438,35]
[336684007,1725015039365,-150.0,0.00036531,2]
[336684008,1725015039374,-600.0,0.00036698,37]
[336684009,1725015039384,-697.2,0.00036809,15]
[336684010,1725015039394,-500.0,0.00037221,7]
[336684011,1725015039404,-153.0,0.00037461,2]
[336684012,1725015039413,-152.0,0.00037465,15]
[336684013,1725015039424,-153.0722618,0.00037735,2]
[336684014,1725015039433,-152.0,0.00037957,15]
[336684015,1725015039443,-600.0,0.00038,48]
[336684016,1725015039453,-600.0,0.00038,48]
[336684017,1725015039462,-172.45168665,0.00038,120]
[336684018,1725015039472,-392.63709959,0.00038086,2]
[336684019,1725015039482,-1554.38894448,0.00038116,2]
[336684020,1725015039493,-1554.38894447,0.00038151,2]
[336684021,1725015039504,-71223.54691092,0.00038186,4]
[336684022,1725015039518,-1838.97940606,0.00038186,4]
[336684029,1725015040306,-174.9964493,0.00024587,2]
[336684030,1725015040316,-17205.66,0.00038176,3]
[336684031,1725015040327,-9440.67831312,0.00038186,4]
[336684032,1725015040338,-1554.38894447,0.00038186,2]
[336684033,1725015040359,-150.112233,0.000382,8]
[336684034,1725015040369,-150.112233,0.000382,6]
[336684035,1725015040379,-150.112233,0.000382,10]
[336684036,1725015040391,-150.112233,0.000382,7]
[336684037,1725015040403,-1554.38894447,0.00038221,2]
[336684038,1725015040413,-697.2,0.00038238,15]
[336684039,1725015040424,-82503.2046301,0.00038246,4]
[336684040,1725015040436,-612.0765596,0.00038255,15]
[336684041,1725015040445,-175.41406639,0.00038255,15]
[336684042,1725015040456,-500.0,0.00038255,15]
[336684043,1725015040466,-500.0,0.00038255,15]
[336684044,1725015040475,-500.0,0.00038255,15]
[336684045,1725015040487,-500.0,0.00038255,15]
[336684046,1725015040497,-500.0,0.00038255,15]
[336684047,1725015040507,-500.0,0.00038255,15]
[336684048,1725015040516,-500.0,0.00038255,15]
[336684049,1725015040526,-500.0,0.00038255,15]
[336684050,1725015040536,-500.0,0.00038255,15]
[336684051,1725015040546,-500.0,0.00038255,15]
[336684052,1725015040556,-500.0,0.00038255,15]
[336684053,1725015040566,-500.0,0.00038255,15]
[336684054,1725015040575,-500.0,0.00038255,15]
[336684055,1725015040586,-331.87163198,0.00038255,15]
[336684056,1725015040597,-23712.3334735,0.00038256,5]
[336684057,1725015040607,-1554.38894447,0.00038256,2]
[336684058,1725015040617,-1750.52043234,0.00038256,2]
[336684059,1725015040626,-150.112233,0.000383,10]
[336684060,1725015040636,-150.112233,0.000383,6]
[336684061,1725015040646,-150.112233,0.000383,7]
[336684062,1725015040656,-150.112233,0.000383,8]
[336684063,1725015040665,-150.112233,0.000383,6]
[336684064,1725015040675,-150.112233,0.000383,8]
[336684065,1725015040685,-150.112233,0.000383,9]
[336684066,1725015040694,-600.0,0.00038303,7]
[336684067,1725015040704,-224.37455676,0.00038345,5]
[336684068,1725015040714,-178420.64528704,0.00038346,4]
[336684075,1725015043268,-150.0,0.00036531,2]
[336684076,1725015043278,-11828.57918719,0.00038346,4]
[336684085,1725015047828,-6695.83201716,0.00038346,4]
[336684086,1725015048041,-50564.55739861,0.00038346,4]
[336684087,1725015048051,-150.01,0.00038355,2]
[336684088,1725015048060,-916.7848666,0.00038355,2]
[336684089,1725015048069,-166.745326,0.00038356,7]
[336684090,1725015048079,-166.745326,0.00038356,7]
[336684091,1725015048088,-166.745326,0.00038356,7]
[336684092,1725015048097,-166.745326,0.00038356,7]
[336684093,1725015048107,-166.745326,0.00038356,7]
[336684094,1725015048116,-166.745326,0.00038356,7]
[336684095,1725015048127,-521.86780136,0.00038356,120]
[336684096,1725015048136,-500.0,0.00038356,120]
[336684097,1725015048146,-1591.474809,0.00038356,7]
[336684098,1725015048155,-500.0,0.00038356,120]
[336684099,1725015048165,-500.0,0.00038356,120]
[336684100,1725015048175,-151.0,0.00038356,7]
[336684101,1725015048184,-532.63,0.00038356,120]
[336684102,1725015048193,-433.98195413,0.00038356,120]
[336684103,1725015048202,-502.21500088,0.00038356,120]
[336684104,1725015048212,-500.0,0.00038356,120]
[336684105,1725015048223,-215.48489475,0.00038356,120]
[336684123,1725015210269,169.0985,0.0001863,2]
[336684126,1725015518541,187.5,0.00014247,2]
[336684129,1725015681359,169.0985,0.0001863,2]
[336684142,1725016115173,164.325926,0.00014247,2]
[336684184,1725016238715,-156.78105502,0.000259,60]
[336684185,1725016238727,-200.0,0.00026,30]
[336684186,1725016238740,-151.0,0.00026916,4]
[336684187,1725016238751,-200.0,0.00027,30]
[336684189,1725016238763,-200.0,0.00028,30]
[336684190,1725016238776,-151.0,0.00028334,5]
[336684193,1725016238789,-200.0,0.00029,30]
[336684195,1725016238800,-151.0,0.00029752,6]
[336684197,1725016238812,-151.0,0.0003,120]
[336684199,1725016238824,-200.0,0.0003,30]
[336684201,1725016238836,-200.0,0.00031,30]
[336684203,1725016238848,-151.0,0.0003117,7]
[336684205,1725016238859,-150.0,0.00031966,14]
[336684207,1725016238872,-150.0,0.00031966,14]
[336684209,1725016238883,-200.0,0.00031966,14]
[336684211,1725016238896,-200.0,0.00032,30]
[336684213,1725016238909,-151.0,0.00032137,120]
[336684215,1725016238921,-241.089158,0.00032427,2]
[336684216,1725016238932,-151.0,0.00032588,15]
[336684217,1725016238943,-174.9964493,0.00032745,2]
[336684218,1725016238953,-200.0,0.00033,30]
[336684219,1725016238963,-180.0,0.00033533,2]
[336684220,1725016238974,-3000.0,0.00033534,2]
[336684221,1725016238983,-193.726945,0.0003357,2]
[336684222,1725016239130,-200.0,0.00034,30]
[336684223,1725016239140,-151.0,0.00034006,15]
[336684224,1725016239149,-161.354255,0.00034071,2]
[336684225,1725016239158,-151.0,0.00034274,120]
[336684226,1725016239167,-161.354255,0.00034426,2]
[336684227,1725016239177,-164.325926,0.00034703,2]
[336684228,1725016239186,-161.354255,0.00034781,2]
[336684229,1725016239196,-200.0,0.00035,30]
[336684230,1725016239205,-161.354255,0.00035136,2]
[336684231,1725016239214,-500.0,0.00035336,7]
[336684232,1725016239224,-151.0,0.00035424,15]
[336684233,1725016239233,-161.354255,0.00035491,2]
[336684234,1725016239242,-163.107128,0.00035616,120]
[336684235,1725016239252,-161.354255,0.00035846,2]
[336684236,1725016239261,-151.0,0.00036411,120]
[336684237,1725016239271,-151.0,0.00036842,15]
[336684238,1725016239280,-152.0,0.00037621,15]
[336684239,1725016239290,-1000.0,0.00038,5]
[336684240,1725016239299,-564.1546341,0.00038,38]
[336684241,1725016239323,-435.8453659,0.00038,38]
[336684242,1725016239332,-170.75404894,0.00038004,120]
[336684243,1725016239342,-600.0,0.00038099,7]
[336684244,1725016239351,-152.0,0.00038105,15]
[336684245,1725016239361,-1294.16003502,0.00038155,2]
[336684246,1725016239370,-20673.6630755,0.00038246,5]
[336684249,1725016240615,-3038.670398,0.00038246,5]
[336684250,1725016240627,-932.63336669,0.00038255,2]
[336684251,1725016240638,-932.63336668,0.00038255,2]
[336684252,1725016240650,-932.63336668,0.00038256,2]
[336684253,1725016240659,-932.63336668,0.00038256,2]
[336684254,1725016240670,-932.63336668,0.00038256,2]
[336684255,1725016240681,-1750.52043234,0.00038256,2]
[336684256,1725016240692,-151.0,0.0003826,15]
[336684257,1725016240702,-800.0,0.00038267,7]
[336684258,1725016240714,-150.112233,0.000383,5]
[336684259,1725016240724,-150.112233,0.000383,8]
[336684260,1725016240735,-150.112233,0.000383,7]
[336684261,1725016240745,-150.112233,0.000383,7]
[336684262,1725016240755,-150.112233,0.000383,6]
[336684263,1725016240766,-150.112233,0.000383,10]
[336684264,1725016240775,-150.112234,0.000383,5]
[336684265,1725016240784,-258.4974167,0.00038335,15]
[336684266,1725016240794,-250.0,0.00038335,15]
[336684267,1725016240805,-212.73929052,0.00038335,7]
[336684268,1725016240816,-8804.55,0.00038336,3]
[336684269,1725016240826,-175.41406639,0.00038345,15]
[336684270,1725016240836,-500.0,0.00038345,15]
[336684271,1725016240847,-612.0765596,0.00038345,15]
[336684272,1725016240857,-500.0,0.00038345,15]
[336684273,1725016240868,-500.0,0.00038345,15]
[336684274,1725016240877,-500.0,0.00038345,15]
[336684275,1725016240887,-500.0,0.00038345,15]
[336684276,1725016240897,-500.0,0.00038345,15]
[336684277,1725016240907,-500.0,0.00038345,15]
[336684278,1725016240918,-500.0,0.00038345,15]
[336684279,1725016240928,-500.0,0.00038345,15]
[336684281,1725016240940,-399.56148959,0.00038345,15]
[336684283,1725016240949,-500.0,0.00038345,15]
[336684284,1725016240960,-500.0,0.00038345,15]
[336684285,1725016240970,-314991.03755766,0.00038346,4]
[336684286,1725016240986,-8053.00265457,0.00038346,4]
[336684289,1725016243758,-46639.33781888,0.00038346,4]
[336684290,1725016244538,-6695.83201716,0.00038346,4]
[336684304,1725016651032,169.400957,0.0001863,2]
[336684307,1725016695204,187.5,0.00014247,2]
[336684332,1725017138007,169.400957,0.0001863,2]
[336684337,1725017171399,493.6250656,0.0002,2]
[336684338,1725017171426,2505.4749344,0.0002,2]
[336684341,1725017210585,164.325926,0.00014247,2]
[336684346,1725017321648,8076.93499864,0.000129,2]
[336684370,1725017432612,-11898.04424167,0.0002509,2]
[336684372,1725017432626,-4431.9167723,0.0002509,2]
[336684374,1725017432636,-500.0,0.000251,2]
[336684376,1725017432645,-465.00564957,0.00025987,2]
[336684377,1725017432656,-2190.33233294,0.00026461,2]
[336684378,1725017432666,-500.0,0.0002678,2]
[336684379,1725017432675,-2500.0,0.00027397,2]
[336684380,1725017432686,-500.0,0.00027598,2]
[336684381,1725017432696,-500.0,0.00028329,2]
[336684382,1725017432705,-500.0,0.00028908,2]
[336684383,1725017432714,-500.0,0.000291,2]
[336684384,1725017432725,-500.0,0.00030038,7]
[336684385,1725017432734,-500.0,0.00030472,7]
[336684386,1725017432744,-500.0,0.00030728,7]
[336684387,1725017432752,-500.0,0.00030843,7]
[336684388,1725017432762,-500.0,0.00031051,7]
[336684389,1725017432771,-500.0,0.00031111,7]
[336684390,1725017432782,-150.0,0.00031995,14]
[336684391,1725017432791,-150.0,0.00031995,14]
[336684392,1725017432800,-200.0,0.00031995,14]
[336684393,1725017432809,-199.60434141,0.00031995,15]
[336684394,1725017432818,-9649.95311361,0.00031995,7]
[336684395,1725017432830,-848.77109088,0.00031995,7]
[336684402,1725017438781,-1060.90914104,0.00031995,7]
[336684403,1725017438790,-1416.37358296,0.00031995,30]
[336684404,1725017438799,-500.0,0.00032071,7]
[336684405,1725017438812,-565.84241099,0.00032525,7]
[336684406,1725017438822,-500.0,0.00032724,7]
[336684407,1725017438832,-200.567433,0.0003329,2]
[336684409,1725017438843,-251.0,0.00033484,2]
[336684411,1725017438853,-241.089158,0.00033568,2]
[336684413,1725017438862,-500.0,0.00034618,7]
[336684415,1725017438871,-600.0,0.0003694,7]
[336684417,1725017438882,-10000.0,0.000375,30]
[336684419,1725017438891,-409.5167953,0.00037538,2]
[336684421,1725017438901,-409.5167953,0.00037538,2]
[336684423,1725017438912,-404.4692863,0.00037538,2]
[336684425,1725017438923,-500.0,0.00037589,7]
[336684426,1725017438933,-152.0,0.00037734,15]
[336684427,1725017438943,-328.6975756,0.00037812,2]
[336684428,1725017438953,-1000.0,0.00038,38]
[336684429,1725017438962,-2432.13251394,0.0003805,2]
[336684430,1725017438973,-374.18117236,0.0003806,2]
[336684431,1725017438983,-1132.39003066,0.00038089,2]
[336684432,1725017438993,-1376.74920984,0.00038126,2]
[336684433,1725017439004,-1376.74920983,0.00038156,2]
[336684434,1725017439015,-150.0,0.00038189,2]
[336684435,1725017439027,-150.112233,0.000382,9]
[336684436,1725017439038,-150.112233,0.000382,6]
[336684437,1725017439052,-152.0,0.00038213,15]
[336684438,1725017439061,-500.0,0.00038215,15]
[336684439,1725017439071,-250.0,0.00038215,15]
[336684440,1725017439080,-212.73929052,0.00038215,7]
[336684441,1725017439089,-500.0,0.00038215,15]
[336684442,1725017439098,-500.0,0.00038215,15]
[336684443,1725017439108,-500.0,0.00038215,15]
[336684444,1725017439118,-500.0,0.00038215,15]
[336684445,1725017439129,-434.83065523,0.00038215,15]
[336684446,1725017439138,-258.4974167,0.00038215,15]
[336684447,1725017439147,-29520.31,0.00038216,3]
[336684448,1725017439158,-88432.9749023,0.00038226,4]
[336684449,1725017439167,-826.33,0.00038226,3]
[336684450,1725017439176,-88432.9749023,0.00038236,4]
[336684451,1725017439185,-500.0,0.00038245,15]